{"text_format":"1","workbook":"xlsx","n_sheets":4,"sheets":["Info","Daten"," Ansuchen LIS"," Ansuchen DKK"],"not_rendered":{"charts":0,"images":2,"macros":1,"external_links":0,"defined_names":1,"comments":1,"pivot_tables":0},"unopened":[],"bounds":{"document_bytes":16777216,"sheet_cells":100000,"rows_first":2000,"rows_last":500,"rows_between":2000,"halvings":0,"cell_chars":16384,"cell_head_chars":4096},"cells_cut":0,"cells_raw":0,"read":"whole","date_system":"1900"}

{"sheet":"Info","index":0,"n_rows":25,"n_cols":3,"rows_kept":25,"cut":false,"hidden":false,"merged":[[61,2,61,4],[9,2,9,4],[11,2,11,4],[13,2,13,4],[17,1,17,4],[45,3,45,4],[22,2,23,4],[24,2,25,4],[27,2,28,4],[29,2,30,4]]}
[]
[null,"Version 2021"]
[]
[null,"Hilfe zum Ausfüllen der Formulare"]
[]
[null,"Alle Kostenangaben sind ohne Mehrwertsteuer (ohne Ust.) anzugeben. "]
[]
[null,"Welche Felder sind auszufüllen ?"]
[]
[null,null,"Die grün hinterlegten Felder sind zum Ausfüllen."]
[]
[null,null,"Die blauen Felder sind durch Auswahllisten (Dropdown) zu befüllen. Hier gibt es vorgeschlagene Werte/Texte. Damit die Auswahl funktioniert, bitte unbedingt Zelle markieren."]
[]
[null,null,"Die gelb hinterlegten Felder werden automatisch berechnet oder übernommen."]
[]
[null,"Welches Blatt wird als erstes ausgefüllt ?"]
[]
[null,"Da viele Daten automatisch übernommen werden, ist folgende Reihenfolge beim Ausfüllen der einzelnen Tabellenblätter sinnvollerweise einzuhalten:"]
[null,"1.","Daten [Daten]"]
[null,"2.","Ansuchen"]
[]
[null,"zu 1.","Daten [Daten]"]
[null,null,"Die Daten aus dem Ansuchenformular des Bundes können kopiert werden und mit \"Werte einfügen\" eingefügt werden."]
[]
[null,null,"Die Anlagenart ist unbedingt auszuwählen!"]

{"sheet":"Daten","index":1,"n_rows":36,"n_cols":4,"rows_kept":36,"cut":false,"hidden":false,"merged":[[17,3,17,8],[35,3,35,4],[18,3,18,8],[19,3,19,8],[20,3,20,8],[21,3,21,8],[25,3,25,8],[33,3,33,4],[2,1,2,8],[32,3,32,8],[28,3,28,4],[27,3,27,4],[29,3,29,4],[4,3,4,8],[5,3,5,8],[6,3,6,8],[7,3,7,8],[8,3,8,8],[9,3,9,8],[10,3,10,8],[11,3,11,8],[12,3,12,8],[15,3,15,8],[16,3,16,8]]}
[null,{"$f":"Info!B2","v":"Version 2021"}]
[null,"Daten"]
[null,"Die Daten aus dem Ansuchenformular des Bundes können kopiert werden und hier mit \n\"Werte einfügen\" eingefügt werden."]
[null,null,"Förderungswerber"]
[null,null,"Name"]
[null,null,"Rechtsform"]
[null,null,"Ort"]
[null,null,"Postleitzahl"]
[null,null,"Straße/Nummer"]
[null,null,"Telefonnummer"]
[null,null,"Telefaxnummer"]
[null,null,"E-Mail"]
[null,null,"Ansprechperson / Durchwahl"]
[]
[null,null,"Projektant"]
[null,null,"Name"]
[null,null,"Ort"]
[null,null,"Postleitzahl"]
[null,null,"Straße/Nummer"]
[null,null,"Telefonnummer"]
[null,null,"E-Mail"]
[null,null,"Ansprechperson / Durchwahl"]
[]
[null,null,"Bauabschnittsdaten"]
[null,null,"Anlagenart"]
[null,"ABA","Kurzbezeichnung  ",{"$f":"IF(D25=\"WVA\",\"Digitaler Wasserleitungskataster\",IF(D25=\"ABA\",\"Digitaler Kanalkataster\",))","v":0}]
[null,null,"Bauabschnitt  "]
[null,null,"Baubeginn geplant"]
[null,null,"Funktionsfähigkeit geplant"]
[null,null,"förderfähige Investitionskosten"]
[]
[null,null,"Standortgemeinde"]
[null,null,"Gemeinde"]
[null,null,"Gemeindekennziffer"]
[]
[null,null,"Antragsdatum"]

{"sheet":" Ansuchen LIS","index":2,"n_rows":94,"n_cols":13,"rows_kept":94,"cut":false,"hidden":false,"merged":[[23,3,23,6],[19,3,19,6],[25,9,25,12],[22,3,22,6],[24,3,24,6],[25,3,25,6],[6,1,6,11],[3,12,3,14],[3,4,3,8],[17,3,17,6],[18,3,18,6],[14,6,14,9],[81,2,81,5],[82,2,82,5],[82,9,82,12],[81,9,81,12],[73,4,73,10],[93,2,93,4],[92,9,92,12],[93,9,93,12],[85,2,85,4],[86,2,86,4],[92,2,92,4],[93,6,93,7],[85,6,85,7],[86,6,86,7],[92,6,92,7],[27,1,27,13],[37,4,37,5],[38,4,38,5],[39,4,39,5],[45,6,45,8],[30,11,30,12],[36,6,36,8],[37,6,37,8],[38,6,38,8],[39,6,39,8],[40,6,40,8],[36,4,36,5],[44,6,44,8],[30,4,30,5],[72,4,72,10],[61,2,61,13],[62,2,62,13],[64,1,64,13],[69,1,69,13],[65,1,65,13],[66,1,66,13],[54,2,54,13],[67,1,67,13],[68,1,68,13],[29,4,29,13],[52,2,52,13],[53,2,53,13],[57,2,57,13],[58,2,58,13],[55,2,55,13],[56,2,56,13],[48,6,48,8],[46,6,46,8],[47,6,47,8],[59,2,59,13],[60,2,60,13]]}
[null,{"$f":"Info!B2","v":"Version 2021"}]
[null,"Förderungswerber",null,null,{"$f":"Daten!D5","v":0}]
[null,"Bauvorhaben",null,null,{"$f":"Daten!D25&\" BA \"&Daten!D27&\", \"&Daten!D26","v":" BA , 0"}]
[null,"Gemeinde",null,null,{"$f":"Daten!D33","v":0},null,null,null,null,null,null,"Gemeindekennzahl ",{"$f":"Daten!D34","v":0}]
[]
[null,"Ansuchen um Landesförderung"]
[null,{"$f":"\"(Leitungsinformationssystem \"&Daten!D25&\")\"","v":"(Leitungsinformationssystem )"}]
[]
[null,"An das"]
[null,"Amt der Steiermärkischen Landesregierung"]
[null,"Abteilung 14"]
[null,"Wartingergasse 43"]
[null,"8010 Graz"]
[]
["Liezen"," im Wege der Baubezirksleitung",null,null,null,null,"Liezen"]
["Obersteiermark Ost"]
["Obersteiermark West","Anschrift des Förderungswerbers"]
["Oststeiermark","PLZ, Ort",null,{"$f":"Daten!D8&\" \"&Daten!D7","v":" "}]
["Steirischer Zentralraum","Straße",null,{"$f":"Daten!D9","v":0}]
["Südoststeiermark","Telefon",null,{"$f":"Daten!D10","v":0},null,null,null,null,"Mail",{"$f":"Daten!D12","v":0}]
["Südweststeiermark"]
[null,"Projektant"]
[null,"Name",null,{"$f":"Daten!D16","v":0}]
[null,"PLZ, Ort",null,{"$f":"Daten!D18&\" \"&Daten!D17","v":" "}]
[null,"Straße",null,{"$f":"Daten!D19","v":0}]
[null,"Telefon",null,{"$f":"Daten!D20","v":0},null,null,null,null,"Mail",{"$f":"Daten!D21","v":0}]
[]
[null,"Bei mehreren Förderungswerbern bzw.Projektanten ist die Anschrift der für die Abwicklung der Förderung bevollmächtigten Ansprechperson anzuführen."]
[null,"Daten zum Projekt"]
[null,null,null,"Bereich:"]
[null,null,null,"Baubeginn geplant:",{"$f":"Daten!D28","v":"00:00:00"},null,null,"Funktionsfähigkeit geplant:",null,null,null,{"$f":"Daten!D29","v":"00:00:00"}]
[null,"   1 Baubeginn entspricht Projektsbeginn",null,null,null,null,null,"2 Funktionsfähigkeit entspricht Projektsende"]
[]
[null,"Förderbare Investitionskosten des zur Förderung beantragten Bauabschnittes"]
[null,"(alle Beträge ohne Ust.)"]
[]
[null,null,"Im Jahre"]
[null,null,"Im Jahre",null,{"$f":"IF(E37>0,E37+1,\"\")","v":""}]
[null,null,"Im Jahre",null,{"$f":"IF(E37>0,E37+2,\"\")","v":""}]
[null,null,"Im Jahre",null,{"$f":"IF(E37>0,E37+3,\"\")","v":""},null,{"$f":"G41-G39-G38-G37","v":0}]
[null,null,"Förderbare Investitionskosten",null,null,null,{"$f":"Daten!D30","v":0}]
[]
[null,"Finanzierungsplan (alle Beträge ohne Ust.)"]
[]
[null,null,"Eigenmittel",null,null,null,0]
[null,null,"Landesförderung beantragt",null,null,null,{"$f":"0.1*G49","v":0}]
[null,null,"Bundesförderung beantragt",null,null,null,0]
[null,null,"Sonstige Mittel",null,null,null,{"$f":"G49-G47-G46-G45","v":0}]
[null,null,"Förderbare Investitionskosten",null,null,null,{"$f":"Daten!D30","v":0}]
[]
[]
[null,"Vorgaben für die Landesförderung"]
[null,"l","Als Grundlage für die Landesförderung von kommunalen Bauvorhaben gelten die „Förderungsrichtlinien Siedlungswasserwirtschaft“ i.d.g.F."]
[null,"l","Die Förderungsabwicklung erfolgt nach den Bestimmungen der „Landesdurchführungs-bestimmungen für die Siedlungswasserwirtschaft“ i.d.g.F.(LSW)."]
[null,"l","Der Förderungswerber verpflichtet sich, die Erstellung des Leitungsinformationssystemes von dafür befugten Personen durchführen zu lassen."]
[null,"l","Der Förderungswerber verpflichtet sich zur Einhaltung aller gesetzlichen Bestimmungen (insbesondere Wasserrecht, Baurecht, Gewerbeordnung, ArbeitnehmerInnenschutz, Vergabe-recht und Wettbewerbsrecht unter Berücksichtigung der Allgemeinen Vertragsbedingungen zum Förderungsvertrag des Bundes)."]
[null,"l","Der Tag des Baubeginns sowie der Funktionsfähigkeit sind der Abteilung 14 im Rahmen der Vorlage der Rechnungsnachweise schriftlich bekannt zu geben. Die Meldung des Baubeginns mittels eines Landesrechnungsnachweises sollte sofort nach Baubeginn erfolgen, wobei die Höhe der verbauten Kosten nicht mehr von Bedeutung ist."]
[null,"l","Der Förderungswerber verpflichtet sich, die sachliche und rechnerische Prüfung auf Über-einstimmung mit den Voraussetzungen einer Förderung durch schriftliche Verträge oder sonstige Vereinbarungen an befugte Personen sicherzustellen. Dies gilt insbesondere für die Erstellung der Abrechnungs- und Kollaudierungsunterlagen."]
[null,"l","Der Förderungswerber verpflichtet sich, die Endabrechnungs- und Kollaudierungsunterlagen zum ehestmöglichen Termin, spätestens jedoch zwei Jahre nach der gemeldeten bzw. ge-planten Funktionsfähigkeit der Förderungsstelle des Landes (Abteilung 14, Wartingergasse 43, 8010 Graz) vorzulegen."]
[null,"l","Das endgültige Ausmaß der Landesförderung wird anlässlich der Endüberprüfung (Kollaudierung) festgelegt."]
[null,"l","Der Förderungswerber verpflichtet sich, eine gewährte Förderung unverzüglich ganz oder teilweise zurückzuzahlen, wenn die Verpflichtungen oder die Bedingungen zur Erreichung des Förderungszweckes nicht eingehalten werden."]
[null,"l","Das Land Steiermark behält sich gemäß Art. 50 Abs. 1 Z. 6 und Z. 8 des Landes-Verfassungs-gesetzes (L-VG), LGBl. Nr. 77/2010 eine Gebarungskontrolle durch den Landesrechnungshof vor. Die Überprüfung hat sich auf die ziffernmäßige Richtigkeit, die Übereinstimmung mit den bestehenden Vorschriften, ferner auf die Sparsamkeit, Wirtschaftlichkeit und Zweckmäßigkeit zu erstrecken. Der Förderungswerber nimmt somit zustimmend zur Kenntnis, dass sich das Land Steiermark mit der Gewährung von Landesförderungsmitteln eine Gebarungskontrolle im Sinne des Art. 50 Abs. 1 Z. 6 und Z. 8 L-VG vorbehält."]
[null,"l","Die Abteilung 14 behält sich vor, weitere Unterlagen und Stellungnahmen einzufordern."]
[]
[null,"Der Förderungswerber ersucht um Gewährung einer Landesförderung gemäß den Förderungs-richtlinien Siedlungswasserwirtschaft, die für alle vollständigen Förderungsanträge mit Eingangsdatum in der Abteilung 14 ab dem 1.7.2016 zur Anwendung gelangt. Es wird zur Kenntnis genommen, dass vor Auszahlung von Landesbeiträgen ein Förderungsvertrag mit dem Land Steiermark abzuschließen ist. Der Förderungswerber erklärt, dass die Finanzierung des vorgelegten Projektes gegebenenfalls auch ohne Bereitstellung einer Landesförderung sichergestellt ist."]
[null,"Die Überweisung von Landesförderungsmitteln erfolgt entsprechend dem abgeschlossenen Förderungsvertrag mit dem Land Steiermark nach Meldung des Baubeginns und nach Maßgabe der im jeweiligen Landesvoranschlag vorhandenen Mittel. Rechnungsnachweise für die Bundes-förderung gelten gleichzeitig als Rechnungsnachweise für die Landesförderung"]
[null,"Unter der Voraussetzung, dass mit dem Ansuchen um Landesförderung auch um Bundesförderung angesucht wird, sind die auf der KPC-Einreichplattform angeführten Unterlagen digital über www.meinefoerderung.at vorzulegen."]
[null,"Bei Wasserverbänden zusätzlich:\n• Kopie der aktuellen Satzungen\n"]
[null,"Bei Wassergenossenschaften zusätzlich:\n• Kopie der aktuellen Satzungen\n"]
[null,"Der Förderungswerber und der Projektant verpflichten sich zur Einhaltung aller Vorgaben für die Landesförderung und erklären ausdrücklich, dass alle Angaben im Förderungsansuchen sowie in den dem Förderungsansuchen beigelegten Unterlagen sachlich und rechnerisch richtig sind und den Voraussetzungen für die Förderung entsprechen.\n"]
[]
[null,"Die Überweisung von Landesförderungsmitteln wird erbeten auf das Konto"]
[null,"IBAN"]
[null,"Kontowortlaut"]
[]
[]
[null,"Für den Förderungswerber (rechtsgültige Fertigung)"]
[]
[]
[]
[]
[null,null,"…………………………………………………"]
[null,null,"Name, Funktion"]
[]
[]
[null,null,{"$f":"Daten!D7","v":0},null,null,null,{"$f":"Daten!D36","v":"00:00:00"}]
[null,null,"Ort",null,null,null,"Datum"]
[]
[null,"Für den Projektanten"]
[]
[]
[]
[null,null,{"$f":"Daten!D17","v":0},null,null,null,{"$f":"Daten!D36","v":"00:00:00"},null,null,"…………………………………………………"]
[null,null,"Ort",null,null,null,"Datum",null,null,"rechtsgültige Fertigung"]

{"sheet":" Ansuchen DKK","index":3,"n_rows":105,"n_cols":13,"rows_kept":105,"cut":false,"hidden":true,"merged":[[25,9,25,12],[3,4,3,8],[3,12,3,14],[6,1,6,11],[14,6,14,9],[17,3,17,6],[18,3,18,6],[19,3,19,6],[22,3,22,6],[23,3,23,6],[24,3,24,6],[25,3,25,6],[27,1,27,13],[30,4,30,5],[30,11,30,12],[39,4,39,5],[39,6,39,8],[29,4,29,13],[33,4,34,13],[40,4,40,5],[40,6,40,8],[41,4,41,5],[41,6,41,8],[42,4,42,5],[42,6,42,8],[66,2,66,13],[60,2,60,13],[43,6,43,8],[47,6,47,8],[48,6,48,8],[49,6,49,8],[50,6,50,8],[51,6,51,8],[52,6,52,8],[56,2,56,13],[57,2,57,13],[58,2,58,13],[59,2,59,13],[61,2,61,13],[62,2,62,13],[63,2,63,13],[64,2,64,13],[65,2,65,13],[104,2,104,4],[104,6,104,7],[104,9,104,12],[90,6,90,7],[93,2,93,5],[93,9,93,12],[94,2,94,5],[94,9,94,12],[96,2,96,4],[96,6,96,7],[97,2,97,4],[97,6,97,7],[103,2,103,4],[103,6,103,7],[103,9,103,12],[87,2,87,5],[87,9,87,12],[67,2,67,13],[69,1,69,13],[70,1,70,13],[74,1,74,13],[77,4,77,10],[78,4,78,10],[86,2,86,5],[86,9,86,12],[71,1,71,13],[72,1,72,13],[73,1,73,13]]}
[null,{"$f":"Info!B2","v":"Version 2021"}]
[null,"Förderungswerber",null,null,{"$f":"Daten!D5","v":0}]
[null,"Bauvorhaben",null,null,{"$f":"\"ABA BA \"&Daten!D27&\", Digitaler Kanalkataster\"","v":"ABA BA , Digitaler Kanalkataster"}]
[null,"Gemeinde",null,null,{"$f":"Daten!D33","v":0},null,null,null,null,null,null,"Gemeindekennzahl ",{"$f":"Daten!D34","v":0}]
[]
[null,"Ansuchen um Landesförderung"]
[null,"(Digitaler Kanalkataster DKK)"]
[]
[null,"An das"]
[null,"Amt der Steiermärkischen Landesregierung"]
[null,"Abteilung 14"]
[null,"Wartingergasse 43"]
[null,"8010 Graz"]
[]
["Liezen"," im Wege der Baubezirksleitung",null,null,null,null,"Obersteiermark West"]
["Obersteiermark Ost"]
["Obersteiermark West","Anschrift des Förderungswerbers"]
["Oststeiermark","PLZ, Ort",null,{"$f":"Daten!D8&\" \"&Daten!D7","v":" "}]
["Steirischer Zentralraum","Straße",null,{"$f":"Daten!D9","v":0}]
["Südoststeiermark","Telefon",null,{"$f":"Daten!D10","v":0},null,null,null,null,"Mail",{"$f":"Daten!D12","v":0}]
["Südweststeiermark"]
[null,"Projektant"]
[null,"Name",null,{"$f":"Daten!D16","v":0}]
[null,"PLZ, Ort",null,{"$f":"Daten!D18&\" \"&Daten!D17","v":" "}]
[null,"Straße",null,{"$f":"Daten!D19","v":0}]
[null,"Telefon",null,{"$f":"Daten!D20","v":0},null,null,null,null,"Mail",{"$f":"Daten!D21","v":0}]
[]
[null,"Bei mehreren Förderungswerbern bzw.Projektanten ist die Anschrift der für die Abwicklung der Förderung bevollmächtigten Ansprechperson anzuführen."]
[null,"Daten zum Projekt"]
[null,null,null,"Bereich:"]
[null,"Baubeginn1 geplant:",null,null,{"$f":"Daten!D28","v":"00:00:00"},null,null,"Funktionsfähigkeit2 geplant:",null,null,null,{"$f":"Daten!D29","v":"00:00:00"}]
[null,"1 Baubeginn entspricht Projektsbeginn",null,null,null,null,null,"2 Funktionsfähigkeit entspricht Projektsende"]
[null,"Förderung"]
[null,"Fördersatz",null,0.1,"(Bei mehreren betroffenen Gemeinden ist der Fördersatz anhand des Formulares \"Mischfördersatz\" zu berechnen.)"]
[]
[]
[null,"Förderbare Investitionskosten des zur Förderung beantragten Bauabschnittes"]
[null,"(alle Beträge ohne Ust.)"]
[]
[null,null,"Im Jahre"]
[null,null,"Im Jahre",null,{"$f":"IF(E40>0,E40+1,\"\")","v":""}]
[null,null,"Im Jahre",null,{"$f":"IF(E40>0,E40+2,\"\")","v":""}]
[null,null,"Im Jahre",null,{"$f":"IF(E40>0,E40+3,\"\")","v":""},null,{"$f":"G44-G42-G41-G40","v":0}]
[null,null,"Förderbare Investitionskosten",null,null,null,{"$f":"Daten!D30","v":0}]
[]
[null,"Finanzierungsplan (alle Beträge ohne Ust.)"]
[]
[null,null,"Anschlussgebühren",null,null,null,0]
[null,null,"Eigenmittel",null,null,null,0]
[null,null,"Landesförderung beantragt",null,null,null,{"$f":"D34*G53","v":0}]
[null,null,"Bundesförderung beantragt",null,null,null,0]
[null,null,"Sonstige Mittel",null,null,null,{"$f":"G53-G48-G49-G50-G51","v":0}]
[null,null,"Förderbare Investitionskosten",null,null,null,{"$f":"Daten!D30","v":0}]
[]
[]
[null,"Vorgaben für die Landesförderung"]
[null,"l","Als Grundlage für die Landesförderung von digitalen Wasserleitungskatastern gelten die „Förderungsrichtlinien Siedlungswasserwirtschaft für das Bundesland Steiermark“, vom 01.07.2016 i.d.g.F."]
[null,"l","Die Förderungsabwicklung erfolgt nach den Bestimmungen der „Landesdurchführungs-bestimmungen für die Siedlungswasserwirtschaft“ i.d.g.F.(LSW)."]
[null,"l","Dem Förderungsansuchen sind Unterlagen gemäß Deckblatt zum Förderungsansuchen (LSW/Anhang) anzuschließen."]
[null,"l","Der Förderungswerber verpflichtet sich, die Erstellung des Leitungskatasters von dafür befugten Personen durchführen zu lassen."]
[null,"l","Der Förderungswerber verpflichtet sich zur Einhaltung aller gesetzlichen Bestimmungen (insbesondere Wasserrecht, Baurecht, Gewerbeordnung, ArbeitnehmerInnenschutz, Vergabe-recht und Wettbewerbsrecht unter Berücksichtigung der Allgemeinen Vertragsbedingungen zum Förderungsvertrag des Bundes)."]
[null,"l","Der Tag des Baubeginns sowie der Funktionsfähigkeit sind der Abteilung 14 im Rahmen der Vorlage der Rechnungsnachweise schriftlich bekannt zu geben. Die Meldung des Baubeginns mittels eines Landesrechnungsnachweises sollte sofort nach Baubeginn erfolgen, wobei die Höhe der verbauten Kosten nicht mehr von Bedeutung ist."]
[null,"l","Der Förderungswerber verpflichtet sich, die sachliche und rechnerische Prüfung auf Über-einstimmung mit den Voraussetzungen einer Förderung durch schriftliche Verträge oder sonstige Vereinbarungen an befugte Personen sicherzustellen. Dies gilt insbesondere für die Erstellung der Abrechnungs- und Kollaudierungsunterlagen."]
[null,"l","Der Förderungswerber verpflichtet sich, die Endabrechnungs- und Kollaudierungsunterlagen zum ehestmöglichen Termin, spätestens jedoch zwei Jahre nach der gemeldeten bzw. ge-planten Funktionsfähigkeit der Förderungsstelle des Landes (Abteilung 14, Wartingergasse 43, 8010 Graz) vorzulegen."]
[null,"l","Das endgültige Ausmaß der Landesförderung wird anlässlich der Endüberprüfung (Kollaudierung) festgelegt."]
[null,"l","Der Förderungswerber verpflichtet sich, eine gewährte Förderung unverzüglich ganz oder teilweise zurückzuzahlen, wenn die Verpflichtungen oder die Bedingungen zur Erreichung des Förderungszweckes nicht eingehalten werden."]
[null,"l","Das Land Steiermark behält sich gemäß Art. 50 Abs. 1 Z. 6 und Z. 8 des Landes-Verfassungs-gesetzes (L-VG), LGBl. Nr. 77/2010 eine Gebarungskontrolle durch den Landesrechnungshof vor. Die Überprüfung hat sich auf die ziffernmäßige Richtigkeit, die Übereinstimmung mit den bestehenden Vorschriften, ferner auf die Sparsamkeit, Wirtschaftlichkeit und Zweckmäßigkeit zu erstrecken. Der Förderungswerber nimmt somit zustimmend zur Kenntnis, dass sich das Land Steiermark mit der Gewährung von Landesförderungsmitteln eine Gebarungskontrolle im Sinne des Art. 50 Abs. 1 Z. 6 und Z. 8 L-VG vorbehält."]
[null,"l","Sollte die Erstellung des digitalen Kanalkatasters im offenen Verfahren oder im nicht offenen Verfahren mit öffentlicher Bekanntmachung ausgeschrieben werden, so verpflichtet sich der Förderungsnehmer nach Abrechnung der ausgeschriebenen Leistungen eine Vergleichsrechnung mit den ersten drei Bietern durchzuführen und eine Aufstellung der Endabrechnung der Abteilung 14 vorzulegen. Die Abteilung 14 behält sich vor, weitere Unterlagen und Stellungnahmen einzufordern."]
[]
[null,"Der Förderungswerber ersucht um Gewährung einer Landesförderung gemäß den Förderungs-richtlinien Siedlungswasserwirtschaft, die für alle vollständigen Förderungsanträge mit Eingangsdatum in der Abteilung 14 ab dem 1.7.2016 zur Anwendung gelangt. Es wird zur Kenntnis genommen, dass vor Auszahlung von Landesbeiträgen ein Förderungsvertrag mit dem Land Steiermark abzuschließen ist. Der Förderungswerber erklärt, dass die Finanzierung des vorgelegten Projektes gegebenenfalls auch ohne Bereitstellung einer Landesförderung sichergestellt ist."]
[null,"Die Überweisung von Landesförderungsmitteln erfolgt entsprechend dem abgeschlossenen Förderungsvertrag mit dem Land Steiermark nach Meldung des Baubeginns und nach Maßgabe der im jeweiligen Landesvoranschlag vorhandenen Mittel. Rechnungsnachweise für die Bundes-förderung gelten gleichzeitig als Rechnungsnachweise für die Landesförderung"]
[null,"Unter der Voraussetzung, dass mit dem Ansuchen um Landesförderung auch um Bundesförderung angesucht wird, sind insgesamt folgende Unterlagen ausgefüllt im Wege der zuständigen Baubezirksleitung an die Abteilung 14 zu übermitteln:\n• Förderungsansuchen für Abwasserbeseitigungsanlagen (ABA) (Bundesformular 3-fach)\n• Technisches Datenerfassungsblatt (ABA) (Bundesformular 3-fach)\n• Katalog Abwasserbeseitigungsanlagen (Bundesformular 3-fach)\n• Ansuchen um Landesförderung (2-fach)\n• Technischer Bericht (3-fach)\n• Übersichtslageplan (i.d.R. im M = 1:5000, 3-fach)\n"]
[null,"Bei Wasserverbänden zusätzlich:\n• Kopie der aktuellen Satzungen (1-fach)\n• Kopie des Verbandsbeschlusses (2-fach)\n"]
[null,"Bei Wassergenossenschaften zusätzlich:\n• Formlose, schriftliche Zustimmung der Gemeinde zur Maßnahme (2-fach)\n• Kopie der aktuellen Satzungen (1-fach)\n• Kopie des Genossenschaftsbeschlusses (1-fach)\n"]
[null,"Der Förderungswerber und der Projektant verpflichten sich zur Einhaltung aller Vorgaben für die Landesförderung und erklären ausdrücklich, dass alle Angaben im Förderungsansuchen sowie in den im Deckblatt zum Förderungsansuchen angeführten Unterlagen sachlich und rechnerisch richtig sind und den Voraussetzungen für die Förderung entsprechen.\n"]
[]
[null,"Die Überweisung von Landesförderungsmitteln wird erbeten auf das Konto"]
[null,"IBAN",null,null,"AT81 2081 5209 0010 0900"]
[null,"Kontowortlaut"]
[]
[]
[null,"Für den Förderungswerber (rechtsgültige Fertigung)"]
[]
[]
[]
[]
[null,null,"…………………………………………………",null,null,null,null,null,null,"…………………………………………………"]
[null,null,"Name, Funktion",null,null,null,null,null,null,"Name, Funktion"]
[]
[]
[null,null,null,null,null,null,"        Siegel"]
[]
[]
[null,null,"…………………………………………………",null,null,null,null,null,null,"…………………………………………………"]
[null,null,"Name, Funktion",null,null,null,null,null,null,"Name, Funktion"]
[]
[null,null,{"$f":"Daten!D7","v":0},null,null,null,{"$f":"Daten!D36","v":"00:00:00"}]
[null,null,"Ort",null,null,null,"Datum"]
[]
[null,"Für den Projektanten"]
[]
[]
[]
[null,null,{"$f":"Daten!D17","v":0},null,null,null,{"$f":"Daten!D36","v":"00:00:00"},null,null,"…………………………………………………"]
[null,null,"Ort",null,null,null,"Datum",null,null,"rechtsgültige Fertigung"]